{"text_format":"3","workbook":"xlsx","n_sheets":17,"sheets":["Startseite","ALU-ECOPAC","ALU-COMPACT","H30 ECO","H40 ECO","H50 ECO","H60 ECO","H70 ECO","H80 ECO","H100 ECO","H30 COMPACT","H40 COMPACT","H50 COMPACT","H60 COMPACT","H70 COMPACT","H80 COMPACT","H100 COMPACT"],"not_rendered":{"images":26},"read":"whole","date_system":"1900"}

{"sheet":"Startseite","index":0,"n_rows":20,"n_cols":3,"rows_kept":20,"merged":[[0,1,0,5]]}
[null,"WERKNORM für ALU-Gehäuse"]
[]
[]
[]
[]
[null,"ALU-ECOPAC","Bitte hier klicken"]
{"$rows_empty":13}
[null,"ALU-COMPACT","Bitte hier klicken"]

{"sheet":"ALU-ECOPAC","index":1,"n_rows":59,"n_cols":3,"rows_kept":59}
["Zurück zur Startseite"]
[]
["Werknorm ALU-ECOPAC"]
[]
[]
["Schritt 1:","Eingabe Profil-Höhe"]
[]
[null,"Profilhöhe "]
[null,"Aussen [mm]"]
[]
[null,"H30","hier klicken"]
[]
[null,"H40","hier klicken"]
[]
[null,"H50","hier klicken"]
[]
[null,"H60","hier klicken"]
[]
[null,"H70","hier klicken"]
[]
[null,"H80","hier klicken"]
[]
[null,"H100","hier klicken"]
{"$rows_empty":35}
["Zurück zur Startseite"]

{"sheet":"ALU-COMPACT","index":2,"n_rows":59,"n_cols":3,"rows_kept":59}
["Zurück zur Startseite"]
[]
["Werknorm ALU-COMPACT"]
[]
[]
["Schritt 1:","Eingabe Profil-Höhe"]
[]
[null,"Profilhöhe "]
[null,"Aussen [mm]"]
[]
[null,"H30","hier klicken"]
[]
[null,"H40","hier klicken"]
[]
[null,"H50","hier klicken"]
[]
[null,"H60","hier klicken"]
[]
[null,"H70","hier klicken"]
[]
[null,"H80","hier klicken"]
[]
[null,"H100","hier klicken"]
{"$rows_empty":35}
["Zurück zur Startseite"]

{"sheet":"H30 ECO","index":3,"n_rows":110,"n_cols":6,"rows_kept":110,"merged":[[21,2,21,4],[22,2,22,4]]}
["Zurück zu ALU-ECOPAC"]
[]
["Werknorm ALU-ECOPAC  H30"]
[]
[]
["EINGABE"]
[]
[]
[null,"Eingabe Leiterplatten-Maße"]
[]
[null,"Länge LLP ",0," [mm]"]
[]
[null,"Breite BLP  ",0," [mm]"]
[]
[]
["Maße / Teileliste"]
[]
["Kurzbeschreibung",null," Abmessungen [mm]",null,null,"Anzahl [Stück]"]
["Alu-Längsprofil Länge L =",null,{"$f":"C11+0.2","v":0.2},null,null,2]
["Boden- / Deckplatte s = 1,5 mm [LxB]",null,{"$f":"C11","v":{"v":0,"d":"0.0"}},"X",{"$f":"C13-4+15.6-0.2","v":11.4},2]
["Boden- / Deckplatte s = 2,0 mm [LxB]",null,{"$f":"C11","v":{"v":0,"d":"0.0"}},"X",{"$f":"C13-4+8.6-0.2","v":4.3999999999999995},2]
["Boden- / Deckplatte s = 2,5 mm [LxB]",null,"nicht möglich",null,null,"---"]
["Boden- / Deckplatte s = 3,0 mm [LxB]",null,"nicht möglich",null,null,"---"]
["Stirnplatte mit Maß B4",null,{"$f":"C13+10.2","v":10.2},null,null,2]
[]
["Bitte beachten:"]
["1. Die Breite der Boden- / Deckplatte ändert sich mit Ihrer Dicke s (siehe Tabelle)"]
{"$rows_empty":25}
["Zurück zu ALU-ECOPAC"]
[]
["Zurück zu ALU-ECOPAC"]
[]
["Profil-Zeichnung H30"]
{"$rows_empty":23}
["Dicke s Boden- /",null,"max."]
["Deckenplatte",null,"Innenhöhe Hi"]
[]
["Boden- / Deckplatte s = 1,5 mm",null,"20,40 mm"]
["Boden- / Deckplatte s = 2,0 mm",null,"19,40 mm"]
["Boden- / Deckplatte s = 2,5 mm",null,"nicht möglich"]
["Boden- / Deckplatte s = 3,0 mm",null,"nicht möglich"]
{"$rows_empty":22}
["Zurück zu ALU-ECOPAC"]

{"sheet":"H40 ECO","index":4,"n_rows":109,"n_cols":6,"rows_kept":109,"merged":[[22,2,22,4]]}
["Zurück zu ALU-ECOPAC"]
[]
["Werknorm ALU-ECOPAC  H40"]
[]
[]
["EINGABE"]
[]
[]
[null,"Eingabe Leiterplatten-Maße"]
[]
[null,"Länge LLP ",160," [mm]"]
[]
[null,"Breite BLP  ",100," [mm]"]
[]
[]
["Maße / Teileliste"]
[]
["Kurzbeschreibung",null," Abmessungen [mm]",null,null,"Anzahl [Stück]"]
["Alu-Längsprofil Länge L =",null,{"$f":"C11+0.2","v":160.2},null,null,2]
["Boden- / Deckplatte s = 1,5 mm [LxB]",null,{"$f":"C11","v":{"v":160,"d":"160.0"}},"X",{"$f":"C13-4+17.2-0.2","v":113},2]
["Boden- / Deckplatte s = 2,0 mm [LxB]",null,{"$f":"C11","v":{"v":160,"d":"160.0"}},"X",{"$f":"C13-4+11.6-0.2","v":107.39999999999999},2]
["Boden- / Deckplatte s = 2,5 mm [LxB]",null,{"$f":"C11","v":{"v":160,"d":"160.0"}},"X",{"$f":"C13-4+6-0.2","v":101.8},2]
["Boden- / Deckplatte s = 3,0 mm [LxB]",null,"nicht möglich",null,null,"---"]
["Stirnplatte mit Maß B4",null,{"$f":"C13+10.2","v":110.2},null,null,2]
[]
["Bitte beachten:"]
["1. Die Breite der Boden- / Deckplatte ändert sich mit Ihrer Dicke s (siehe Tabelle)"]
{"$rows_empty":26}
["Zurück zu ALU-ECOPAC"]
["Zurück zu ALU-ECOPAC"]
[]
["Profil-Zeichnung H40"]
{"$rows_empty":24}
["Dicke s Boden- /",null,"max."]
["Deckenplatte",null,"Innenhöhe Hi"]
[]
["Boden- / Deckplatte s = 1,5 mm",null,"30,40 mm"]
["Boden- / Deckplatte s = 2,0 mm",null,"29,40 mm"]
["Boden- / Deckplatte s = 2,5 mm",null,"28,40 mm"]
["Boden- / Deckplatte s = 3,0 mm",null,"nicht möglich"]
{"$rows_empty":20}
["Zurück zu ALU-ECOPAC"]

{"sheet":"H50 ECO","index":5,"n_rows":109,"n_cols":6,"rows_kept":109}
["Zurück zu ALU-ECOPAC"]
[]
["Werknorm ALU-ECOPAC  H50"]
[]
[]
["EINGABE"]
[]
[]
[null,"Eingabe Leiterplatten-Maße"]
[]
[null,"Länge LLP ",160," [mm]"]
[]
[null,"Breite BLP  ",100," [mm]"]
[]
[]
["Maße / Teileliste"]
[]
["Kurzbeschreibung",null," Abmessungen [mm]",null,null,"Anzahl [Stück]"]
["Alu-Längsprofil Länge L =",null,{"$f":"C11+0.2","v":160.2},null,null,2]
["Boden- / Deckplatte s = 1,5 mm [LxB]",null,{"$f":"C11","v":{"v":160,"d":"160.0"}},"X",{"$f":"C13-4+17.2-0.2","v":113},2]
["Boden- / Deckplatte s = 2,0 mm [LxB]",null,{"$f":"C11","v":{"v":160,"d":"160.0"}},"X",{"$f":"C13-4+13-0.2","v":108.8},2]
["Boden- / Deckplatte s = 2,5 mm [LxB]",null,{"$f":"C11","v":{"v":160,"d":"160.0"}},"X",{"$f":"C13-4+9-0.2","v":104.8},2]
["Boden- / Deckplatte s = 3,0 mm [LxB]",null,{"$f":"C11","v":{"v":160,"d":"160.0"}},"X",{"$f":"C13-4+5-0.2","v":100.8},2]
["Stirnplatte mit Maß B4",null,{"$f":"C13+10.2","v":110.2},null,null,2]
[]
["Bitte beachten:"]
["1. Die Breite der Boden- / Deckplatte ändert sich mit Ihrer Dicke s (siehe Tabelle)"]
{"$rows_empty":26}
["Zurück zu ALU-ECOPAC"]
["Zurück zu ALU-ECOPAC"]
[]
["Profil-Zeichnung H50"]
{"$rows_empty":36}
["Dicke s Boden- /",null,"max."]
["Deckenplatte",null,"Innenhöhe Hi"]
[]
["Boden- / Deckplatte s = 1,5 mm",null,"40,20 mm"]
["Boden- / Deckplatte s = 2,0 mm",null,"39,20 mm"]
["Boden- / Deckplatte s = 2,5 mm",null,"38,20 mm"]
["Boden- / Deckplatte s = 3,0 mm",null,"37,20 mm"]
{"$rows_empty":8}
["Zurück zu ALU-ECOPAC"]

{"sheet":"H60 ECO","index":6,"n_rows":109,"n_cols":6,"rows_kept":109}
["Zurück zu ALU-ECOPAC"]
[]
["Werknorm ALU-ECOPAC  H60"]
[]
[]
["EINGABE"]
[]
[]
[null,"Eingabe Leiterplatten-Maße"]
[]
[null,"Länge LLP ",160," [mm]"]
[]
[null,"Breite BLP  ",100," [mm]"]
[]
[]
["Maße / Teileliste"]
[]
["Kurzbeschreibung",null," Abmessungen [mm]",null,null,"Anzahl [Stück]"]
["Alu-Längsprofil Länge L =",null,{"$f":"C11+0.2","v":160.2},null,null,2]
["Boden- / Deckplatte s = 1,5 mm [LxB]",null,{"$f":"C11","v":{"v":160,"d":"160.0"}},"X",{"$f":"C13-4+17.2-0.2","v":113},2]
["Boden- / Deckplatte s = 2,0 mm [LxB]",null,{"$f":"C11","v":{"v":160,"d":"160.0"}},"X",{"$f":"C13-4+13-0.2","v":108.8},2]
["Boden- / Deckplatte s = 2,5 mm [LxB]",null,{"$f":"C11","v":{"v":160,"d":"160.0"}},"X",{"$f":"C13-4+9-0.2","v":104.8},2]
["Boden- / Deckplatte s = 3,0 mm [LxB]",null,{"$f":"C11","v":{"v":160,"d":"160.0"}},"X",{"$f":"C13-4+5-0.2","v":100.8},2]
["Stirnplatte mit Maß B4",null,{"$f":"C13+10.2","v":110.2},null,null,2]
[]
["Bitte beachten:"]
["1. Die Breite der Boden- / Deckplatte ändert sich mit Ihrer Dicke s (siehe Tabelle)"]
{"$rows_empty":26}
["Zurück zu ALU-ECOPAC"]
["Zurück zu ALU-ECOPAC"]
[]
["Profil-Zeichnung H60"]
{"$rows_empty":34}
["Dicke s Boden- /",null,"max."]
["Deckenplatte",null,"Innenhöhe Hi"]
[]
["Boden- / Deckplatte s = 1,5 mm",null,"50,20 mm"]
["Boden- / Deckplatte s = 2,0 mm",null,"49,20 mm"]
["Boden- / Deckplatte s = 2,5 mm",null,"48,20 mm"]
["Boden- / Deckplatte s = 3,0 mm",null,"47,20 mm"]
{"$rows_empty":10}
["Zurück zu ALU-ECOPAC"]

{"sheet":"H70 ECO","index":7,"n_rows":109,"n_cols":6,"rows_kept":109}
["Zurück zu ALU-ECOPAC"]
[]
["Werknorm ALU-ECOPAC  H70"]
[]
[]
["EINGABE"]
[]
[]
[null,"Eingabe Leiterplatten-Maße"]
[]
[null,"Länge LLP ",160," [mm]"]
[]
[null,"Breite BLP  ",100," [mm]"]
[]
[]
["Maße / Teileliste"]
[]
["Kurzbeschreibung",null," Abmessungen [mm]",null,null,"Anzahl [Stück]"]
["Alu-Längsprofil Länge L =",null,{"$f":"C11+0.2","v":160.2},null,null,2]
["Boden- / Deckplatte s = 1,5 mm [LxB]",null,{"$f":"C11","v":{"v":160,"d":"160.0"}},"X",{"$f":"C13-4+17.2-0.2","v":113},2]
["Boden- / Deckplatte s = 2,0 mm [LxB]",null,{"$f":"C11","v":{"v":160,"d":"160.0"}},"X",{"$f":"C13-4+13-0.2","v":108.8},2]
["Boden- / Deckplatte s = 2,5 mm [LxB]",null,{"$f":"C11","v":{"v":160,"d":"160.0"}},"X",{"$f":"C13-4+9-0.2","v":104.8},2]
["Boden- / Deckplatte s = 3,0 mm [LxB]",null,{"$f":"C11","v":{"v":160,"d":"160.0"}},"X",{"$f":"C13-4+5-0.2","v":100.8},2]
["Stirnplatte mit Maß B4",null,{"$f":"C13+10.2","v":110.2},null,null,2]
[]
["Bitte beachten:"]
["1. Die Breite der Boden- / Deckplatte ändert sich mit Ihrer Dicke s (siehe Tabelle)"]
{"$rows_empty":26}
["Zurück zu ALU-ECOPAC"]
["Zurück zu ALU-ECOPAC"]
[]
["Profil-Zeichnung H70"]
{"$rows_empty":35}
["Dicke s Boden- /",null,"max."]
["Deckenplatte",null,"Innenhöhe Hi"]
[]
["Boden- / Deckplatte s = 1,5 mm",null,"60,20 mm"]
["Boden- / Deckplatte s = 2,0 mm",null,"59,20 mm"]
["Boden- / Deckplatte s = 2,5 mm",null,"58,20 mm"]
["Boden- / Deckplatte s = 3,0 mm",null,"57,20 mm"]
{"$rows_empty":9}
["Zurück zu ALU-ECOPAC"]

{"sheet":"H80 ECO","index":8,"n_rows":109,"n_cols":6,"rows_kept":109}
["Zurück zu ALU-ECOPAC"]
[]
["Werknorm ALU-ECOPAC  H80"]
[]
[]
["EINGABE"]
[]
[]
[null,"Eingabe Leiterplatten-Maße"]
[]
[null,"Länge LLP ",160," [mm]"]
[]
[null,"Breite BLP  ",100," [mm]"]
[]
[]
["Maße / Teileliste"]
[]
["Kurzbeschreibung",null," Abmessungen [mm]",null,null,"Anzahl [Stück]"]
["Alu-Längsprofil Länge L =",null,{"$f":"C11+0.2","v":160.2},null,null,2]
["Boden- / Deckplatte s = 1,5 mm [LxB]",null,{"$f":"C11","v":{"v":160,"d":"160.0"}},"X",{"$f":"C13-4+17.2-0.2","v":113},2]
["Boden- / Deckplatte s = 2,0 mm [LxB]",null,{"$f":"C11","v":{"v":160,"d":"160.0"}},"X",{"$f":"C13-4+13-0.2","v":108.8},2]
["Boden- / Deckplatte s = 2,5 mm [LxB]",null,{"$f":"C11","v":{"v":160,"d":"160.0"}},"X",{"$f":"C13-4+9-0.2","v":104.8},2]
["Boden- / Deckplatte s = 3,0 mm [LxB]",null,{"$f":"C11","v":{"v":160,"d":"160.0"}},"X",{"$f":"C13-4+5-0.2","v":100.8},2]
["Stirnplatte mit Maß B4",null,{"$f":"C13+10.2","v":110.2},null,null,2]
[]
["Bitte beachten:"]
["1. Die Breite der Boden- / Deckplatte ändert sich mit Ihrer Dicke s (siehe Tabelle)"]
{"$rows_empty":26}
["Zurück zu ALU-ECOPAC"]
["Zurück zu ALU-ECOPAC"]
[]
["Profil-Zeichnung H80"]
{"$rows_empty":37}
["Dicke s Boden- /",null,"max."]
["Deckenplatte",null,"Innenhöhe Hi"]
[]
["Boden- / Deckplatte s = 1,5 mm",null,"70,20 mm"]
["Boden- / Deckplatte s = 2,0 mm",null,"69,20 mm"]
["Boden- / Deckplatte s = 2,5 mm",null,"68,20 mm"]
["Boden- / Deckplatte s = 3,0 mm",null,"67,20 mm"]
{"$rows_empty":7}
["Zurück zu ALU-ECOPAC"]

{"sheet":"H100 ECO","index":9,"n_rows":109,"n_cols":6,"rows_kept":109}
["Zurück zu ALU-ECOPAC"]
[]
["Werknorm ALU-ECOPAC  H100"]
[]
[]
["EINGABE"]
[]
[]
[null,"Eingabe Leiterplatten-Maße"]
[]
[null,"Länge LLP ",160," [mm]"]
[]
[null,"Breite BLP  ",100," [mm]"]
[]
[]
["Maße / Teileliste"]
[]
["Kurzbeschreibung",null," Abmessungen [mm]",null,null,"Anzahl [Stück]"]
["Alu-Längsprofil Länge L =",null,{"$f":"C11+0.2","v":160.2},null,null,2]
["Boden- / Deckplatte s = 1,5 mm [LxB]",null,{"$f":"C11","v":{"v":160,"d":"160.0"}},"X",{"$f":"C13-4+17.2-0.2","v":113},2]
["Boden- / Deckplatte s = 2,0 mm [LxB]",null,{"$f":"C11","v":{"v":160,"d":"160.0"}},"X",{"$f":"C13-4+13-0.2","v":108.8},2]
["Boden- / Deckplatte s = 2,5 mm [LxB]",null,{"$f":"C11","v":{"v":160,"d":"160.0"}},"X",{"$f":"C13-4+9-0.2","v":104.8},2]
["Boden- / Deckplatte s = 3,0 mm [LxB]",null,{"$f":"C11","v":{"v":160,"d":"160.0"}},"X",{"$f":"C13-4+5-0.2","v":100.8},2]
["Stirnplatte mit Maß B4",null,{"$f":"C13+10.2","v":110.2},null,null,2]
[]
["Bitte beachten:"]
["1. Die Breite der Boden- / Deckplatte ändert sich mit Ihrer Dicke s (siehe Tabelle)"]
{"$rows_empty":26}
["Zurück zu ALU-ECOPAC"]
["Zurück zu ALU-ECOPAC"]
[]
["Profil-Zeichnung H100"]
{"$rows_empty":37}
["Dicke s Boden- /",null,"max."]
["Deckenplatte",null,"Innenhöhe Hi"]
[]
["Boden- / Deckplatte s = 1,5 mm",null,"90,20 mm"]
["Boden- / Deckplatte s = 2,0 mm",null,"89,20 mm"]
["Boden- / Deckplatte s = 2,5 mm",null,"88,20 mm"]
["Boden- / Deckplatte s = 3,0 mm",null,"87,20 mm"]
{"$rows_empty":7}
["Zurück zu ALU-ECOPAC"]

{"sheet":"H30 COMPACT","index":10,"n_rows":106,"n_cols":8,"rows_kept":106,"merged":[[17,3,17,5],[22,3,22,5],[23,3,23,5],[82,3,82,5],[83,3,83,5],[84,3,84,5],[85,3,85,5]]}
["Zurück zu ALU-COMPACT"]
[]
["Werknorm ALU-COMPACT  H30"]
[]
[]
["EINGABE"]
[]
[]
[null,"Eingabe Leiterplatten-Maße"]
[]
[null,"Länge LLP ",null,160," [mm]"]
[]
[null,"Breite BLP  ",null,100," [mm]"]
[]
[]
["Maße / Teileliste"]
[]
["Kurzbeschreibung",null,null," Abmessungen [mm]",null,null,"Maß A [mm]","Anzahl [Stück]"]
["Alu-Längsprofil Länge L =",null,null,{"$f":"D11+0.2","v":160.2},{"$nulls":3},2]
["Alu-Stirnseitenprofil L =",null,null,{"$f":"D13-4.3","v":95.7},{"$nulls":3},4]
["Boden- / Deckplatte s = 1,5 mm [LxB]",null,null,{"$f":"D11","v":{"v":160,"d":"160.0"}},"X",{"$f":"D13-4+15.6-0.2","v":111.39999999999999},4,2]
["Boden- / Deckplatte s = 2,0 mm [LxB]",null,null,{"$f":"D11","v":{"v":160,"d":"160.0"}},"X",{"$f":"D13-4+8.6-0.2","v":104.39999999999999},4,2]
["Boden- / Deckplatte s = 2,5 mm [LxB]",null,null,"nicht möglich",null,null,"---","---"]
["Boden- / Deckplatte s = 3,0 mm [LxB]",null,null,"nicht möglich",null,null,"---","---"]
["Stirnplatte mit Maß B4",null,null,{"$f":"D13+10.2","v":110.2},{"$nulls":3},2]
[]
[]
["Bitte beachten:"]
["1. Die Breite der Boden- / Deckplatte ändert sich mit Ihrer Dicke (siehe Tabelle)"]
["2. Die Geometrie (siehe Zeichnung Maß A) der Stirnplatte ist abhängig von der Dicke s "]
["    der Boden- / Deckplatte, da unterschiedliche Stirnseiten-Profile verwendet werden."]
{"$rows_empty":20}
["Zurück zu ALU-COMPACT"]
["Zurück zu ALU-COMPACT"]
[]
[]
["Profil-Zeichnung H30"]
{"$rows_empty":23}
["Dicke s Boden- /",null,null,"max."]
["Deckenplatte",null,null,"Innenhöhe Hi"]
[]
["Boden- / Deckplatte s = 1,5 mm",null,null,"20,40 mm"]
["Boden- / Deckplatte s = 2,0 mm",null,null,"19,40 mm"]
["Boden- / Deckplatte s = 2,5 mm",null,null,"nicht möglich"]
["Boden- / Deckplatte s = 3,0 mm",null,null,"nicht möglich"]
{"$rows_empty":19}
["Zurück zu ALU-COMPACT"]

{"sheet":"H40 COMPACT","index":11,"n_rows":106,"n_cols":8,"rows_kept":106,"merged":[[17,3,17,5],[23,3,23,5],[83,3,83,5],[84,3,84,5],[85,3,85,5],[86,3,86,5]]}
["Zurück zu ALU-COMPACT"]
[]
["Werknorm ALU-COMPACT  H40"]
[]
[]
["EINGABE"]
[]
[]
[null,"Eingabe Leiterplatten-Maße"]
[]
[null,"Länge LLP ",null,160," [mm]"]
[]
[null,"Breite BLP  ",null,100," [mm]"]
[]
[]
["Maße / Teileliste"]
[]
["Kurzbeschreibung",null,null," Abmessungen [mm]",null,null,"Maß A [mm]","Anzahl [Stück]"]
["Alu-Längsprofil Länge L =",null,null,{"$f":"D11+0.2","v":160.2},{"$nulls":3},2]
["Alu-Stirnseitenprofil L =",null,null,{"$f":"D13-4.3","v":95.7},{"$nulls":3},4]
["Boden- / Deckplatte s = 1,5 mm [LxB]",null,null,{"$f":"D11","v":{"v":160,"d":"160.0"}},"X",{"$f":"D13-4+17.2-0.2","v":113},4,2]
["Boden- / Deckplatte s = 2,0 mm [LxB]",null,null,{"$f":"D11","v":{"v":160,"d":"160.0"}},"X",{"$f":"D13-4+11.6-0.2","v":107.39999999999999},4,2]
["Boden- / Deckplatte s = 2,5 mm [LxB]",null,null,{"$f":"D11","v":{"v":160,"d":"160.0"}},"X",{"$f":"D13-4+6-0.2","v":101.8},4.5,2]
["Boden- / Deckplatte s = 3,0 mm [LxB]",null,null,"nicht möglich",null,null,"---","---"]
["Stirnplatte mit Maß B4",null,null,{"$f":"D13+10.2","v":110.2},{"$nulls":3},2]
[]
[]
["Bitte beachten:"]
["1. Die Breite der Boden- / Deckplatte ändert sich mit Ihrer Dicke (siehe Tabelle)"]
["2. Die Geometrie (siehe Zeichnung Maß A) der Stirnplatte ist abhängig von der Dicke s "]
["    der Boden- / Deckplatte, da unterschiedliche Stirnseiten-Profile verwendet werden."]
{"$rows_empty":20}
["Zurück zu ALU-COMPACT"]
["Zurück zu ALU-COMPACT"]
[]
[]
["Profil-Zeichnung H40"]
{"$rows_empty":24}
["Dicke s Boden- /",null,null,"max."]
["Deckenplatte",null,null,"Innenhöhe Hi"]
[]
["Boden- / Deckplatte s = 1,5 mm",null,null,"30,40 mm"]
["Boden- / Deckplatte s = 2,0 mm",null,null,"29,40 mm"]
["Boden- / Deckplatte s = 2,5 mm",null,null,"28,40 mm"]
["Boden- / Deckplatte s = 3,0 mm",null,null,"nicht möglich"]
{"$rows_empty":18}
["Zurück zu ALU-COMPACT"]

{"sheet":"H50 COMPACT","index":12,"n_rows":106,"n_cols":8,"rows_kept":106,"merged":[[17,3,17,5],[95,3,95,5],[96,3,96,5],[97,3,97,5],[98,3,98,5]]}
["Zurück zu ALU-COMPACT"]
[]
["Werknorm ALU-COMPACT  H50"]
[]
[]
["EINGABE"]
[]
[]
[null,"Eingabe Leiterplatten-Maße"]
[]
[null,"Länge LLP ",null,160," [mm]"]
[]
[null,"Breite BLP  ",null,100," [mm]"]
[]
[]
["Maße / Teileliste"]
[]
["Kurzbeschreibung",null,null," Abmessungen [mm]",null,null,"Maß A [mm]","Anzahl [Stück]"]
["Alu-Längsprofil Länge L =",null,null,{"$f":"D11+0.2","v":160.2},{"$nulls":3},2]
["Alu-Stirnseitenprofil L =",null,null,{"$f":"D13-4.3","v":95.7},{"$nulls":3},4]
["Boden- / Deckplatte s = 1,5 mm [LxB]",null,null,{"$f":"D11","v":{"v":160,"d":"160.0"}},"X",{"$f":"D13-4+17.2-0.2","v":113},4,2]
["Boden- / Deckplatte s = 2,0 mm [LxB]",null,null,{"$f":"D11","v":{"v":160,"d":"160.0"}},"X",{"$f":"D13-4+13-0.2","v":108.8},4,2]
["Boden- / Deckplatte s = 2,5 mm [LxB]",null,null,{"$f":"D11","v":{"v":160,"d":"160.0"}},"X",{"$f":"D13-4+9-0.2","v":104.8},4.5,2]
["Boden- / Deckplatte s = 3,0 mm [LxB]",null,null,{"$f":"D11","v":{"v":160,"d":"160.0"}},"X",{"$f":"D13-4+5-0.2","v":100.8},5,2]
["Stirnplatte mit Maß B4",null,null,{"$f":"D13+10.2","v":110.2},{"$nulls":3},2]
[]
[]
["Bitte beachten:"]
["1. Die Breite der Boden- / Deckplatte ändert sich mit Ihrer Dicke (siehe Tabelle)"]
["2. Die Geometrie (siehe Zeichnung Maß A) der Stirnplatte ist abhängig von der Dicke s "]
["    der Boden- / Deckplatte, da unterschiedliche Stirnseiten-Profile verwendet werden."]
{"$rows_empty":20}
["Zurück zu ALU-COMPACT"]
["Zurück zu ALU-COMPACT"]
[]
[]
["Profil-Zeichnung H50"]
{"$rows_empty":36}
["Dicke s Boden- /",null,null,"max."]
["Deckenplatte",null,null,"Innenhöhe Hi"]
[]
["Boden- / Deckplatte s = 1,5 mm",null,null,"40,20 mm"]
["Boden- / Deckplatte s = 2,0 mm",null,null,"39,20 mm"]
["Boden- / Deckplatte s = 2,5 mm",null,null,"38,20 mm"]
["Boden- / Deckplatte s = 3,0 mm",null,null,"37,20 mm"]
[]
[]
[]
[]
[]
[]
["Zurück zu ALU-COMPACT"]

{"sheet":"H60 COMPACT","index":13,"n_rows":106,"n_cols":8,"rows_kept":106,"merged":[[17,3,17,5],[93,3,93,5],[94,3,94,5],[95,3,95,5],[96,3,96,5]]}
["Zurück zu ALU-COMPACT"]
[]
["Werknorm ALU-COMPACT  H60"]
[]
[]
["EINGABE"]
[]
[]
[null,"Eingabe Leiterplatten-Maße"]
[]
[null,"Länge LLP ",null,160," [mm]"]
[]
[null,"Breite BLP  ",null,200," [mm]"]
[]
[]
["Maße / Teileliste"]
[]
["Kurzbeschreibung",null,null," Abmessungen [mm]",null,null,"Maß A [mm]","Anzahl [Stück]"]
["Alu-Längsprofil Länge L =",null,null,{"$f":"D11+0.2","v":160.2},{"$nulls":3},2]
["Alu-Stirnseitenprofil L =",null,null,{"$f":"D13-4.3","v":195.7},{"$nulls":3},4]
["Boden- / Deckplatte s = 1,5 mm [LxB]",null,null,{"$f":"D11","v":{"v":160,"d":"160.0"}},"X",{"$f":"D13-4+17.2-0.2","v":213},4,2]
["Boden- / Deckplatte s = 2,0 mm [LxB]",null,null,{"$f":"D11","v":{"v":160,"d":"160.0"}},"X",{"$f":"D13-4+13-0.2","v":208.8},4,2]
["Boden- / Deckplatte s = 2,5 mm [LxB]",null,null,{"$f":"D11","v":{"v":160,"d":"160.0"}},"X",{"$f":"D13-4+9-0.2","v":204.8},4.5,2]
["Boden- / Deckplatte s = 3,0 mm [LxB]",null,null,{"$f":"D11","v":{"v":160,"d":"160.0"}},"X",{"$f":"D13-4+5-0.2","v":200.8},5,2]
["Stirnplatte mit Maß B4",null,null,{"$f":"D13+10.2","v":210.2},{"$nulls":3},2]
[]
[]
["Bitte beachten:"]
["1. Die Breite der Boden- / Deckplatte ändert sich mit Ihrer Dicke (siehe Tabelle)"]
["2. Die Geometrie (siehe Zeichnung Maß A) der Stirnplatte ist abhängig von der Dicke s "]
["    der Boden- / Deckplatte, da unterschiedliche Stirnseiten-Profile verwendet werden."]
{"$rows_empty":20}
["Zurück zu ALU-COMPACT"]
["Zurück zu ALU-COMPACT"]
[]
[]
["Profil-Zeichnung H60"]
{"$rows_empty":34}
["Dicke s Boden- /",null,null,"max."]
["Deckenplatte",null,null,"Innenhöhe Hi"]
[]
["Boden- / Deckplatte s = 1,5 mm",null,null,"50,20 mm"]
["Boden- / Deckplatte s = 2,0 mm",null,null,"49,20 mm"]
["Boden- / Deckplatte s = 2,5 mm",null,null,"48,20 mm"]
["Boden- / Deckplatte s = 3,0 mm",null,null,"47,20 mm"]
{"$rows_empty":8}
["Zurück zu ALU-COMPACT"]

{"sheet":"H70 COMPACT","index":14,"n_rows":106,"n_cols":8,"rows_kept":106,"merged":[[17,3,17,5],[94,3,94,5],[95,3,95,5],[96,3,96,5],[97,3,97,5]]}
["Zurück zu ALU-COMPACT"]
[]
["Werknorm ALU-COMPACT  H70"]
[]
[]
["EINGABE"]
[]
[]
[null,"Eingabe Leiterplatten-Maße"]
[]
[null,"Länge LLP ",null,160," [mm]"]
[]
[null,"Breite BLP  ",null,100," [mm]"]
[]
[]
["Maße / Teileliste"]
[]
["Kurzbeschreibung",null,null," Abmessungen [mm]",null,null,"Maß A [mm]","Anzahl [Stück]"]
["Alu-Längsprofil Länge L =",null,null,{"$f":"D11+0.2","v":160.2},{"$nulls":3},2]
["Alu-Stirnseitenprofil L =",null,null,{"$f":"D13-4.3","v":95.7},{"$nulls":3},4]
["Boden- / Deckplatte s = 1,5 mm [LxB]",null,null,{"$f":"D11","v":{"v":160,"d":"160.0"}},"X",{"$f":"D13-4+17.2-0.2","v":113},4,2]
["Boden- / Deckplatte s = 2,0 mm [LxB]",null,null,{"$f":"D11","v":{"v":160,"d":"160.0"}},"X",{"$f":"D13-4+13-0.2","v":108.8},4,2]
["Boden- / Deckplatte s = 2,5 mm [LxB]",null,null,{"$f":"D11","v":{"v":160,"d":"160.0"}},"X",{"$f":"D13-4+9-0.2","v":104.8},4.5,2]
["Boden- / Deckplatte s = 3,0 mm [LxB]",null,null,{"$f":"D11","v":{"v":160,"d":"160.0"}},"X",{"$f":"D13-4+5-0.2","v":100.8},5,2]
["Stirnplatte mit Maß B4",null,null,{"$f":"D13+10.2","v":110.2},{"$nulls":3},2]
[]
["Bitte beachten:"]
["1. Die Breite der Boden- / Deckplatte ändert sich mit Ihrer Dicke (siehe Tabelle)"]
["2. Die Geometrie (siehe Zeichnung Maß A) der Stirnplatte ist abhängig von der Dicke s "]
["    der Boden- / Deckplatte, da unterschiedliche Stirnseiten-Profile verwendet werden."]
{"$rows_empty":21}
["Zurück zu ALU-COMPACT"]
["Zurück zu ALU-COMPACT"]
[]
[]
["Profil-Zeichnung H70"]
{"$rows_empty":35}
["Dicke s Boden- /",null,null,"max."]
["Deckenplatte",null,null,"Innenhöhe Hi"]
[]
["Boden- / Deckplatte s = 1,5 mm",null,null,"60,20 mm"]
["Boden- / Deckplatte s = 2,0 mm",null,null,"59,20 mm"]
["Boden- / Deckplatte s = 2,5 mm",null,null,"58,20 mm"]
["Boden- / Deckplatte s = 3,0 mm",null,null,"57,20 mm"]
{"$rows_empty":7}
["Zurück zu ALU-COMPACT"]

{"sheet":"H80 COMPACT","index":15,"n_rows":111,"n_cols":8,"rows_kept":111,"merged":[[17,3,17,5],[98,3,98,5],[99,3,99,5],[100,3,100,5],[101,3,101,5]]}
["Zurück zu ALU-COMPACT"]
[]
["Werknorm ALU-COMPACT  H80"]
[]
[]
["EINGABE"]
[]
[]
[null,"Eingabe Leiterplatten-Maße"]
[]
[null,"Länge LLP ",null,160," [mm]"]
[]
[null,"Breite BLP  ",null,100," [mm]"]
[]
[]
["Maße / Teileliste"]
[]
["Kurzbeschreibung",null,null," Abmessungen [mm]",null,null,"Maß A [mm]","Anzahl [Stück]"]
["Alu-Längsprofil Länge L =",null,null,{"$f":"D11+0.2","v":160.2},{"$nulls":3},2]
["Alu-Stirnseitenprofil L =",null,null,{"$f":"D13-4.3","v":95.7},{"$nulls":3},4]
["Boden- / Deckplatte s = 1,5 mm [LxB]",null,null,{"$f":"D11","v":{"v":160,"d":"160.0"}},"X",{"$f":"D13-4+17.2-0.2","v":113},4,2]
["Boden- / Deckplatte s = 2,0 mm [LxB]",null,null,{"$f":"D11","v":{"v":160,"d":"160.0"}},"X",{"$f":"D13-4+13-0.2","v":108.8},4,2]
["Boden- / Deckplatte s = 2,5 mm [LxB]",null,null,{"$f":"D11","v":{"v":160,"d":"160.0"}},"X",{"$f":"D13-4+9-0.2","v":104.8},4.5,2]
["Boden- / Deckplatte s = 3,0 mm [LxB]",null,null,{"$f":"D11","v":{"v":160,"d":"160.0"}},"X",{"$f":"D13-4+5-0.2","v":100.8},5,2]
["Stirnplatte mit Maß B4",null,null,{"$f":"D13+10.2","v":110.2},{"$nulls":3},2]
[]
["Bitte beachten:"]
["1. Die Breite der Boden- / Deckplatte ändert sich mit Ihrer Dicke (siehe Tabelle)"]
["2. Die Geometrie (siehe Zeichnung Maß A) der Stirnplatte ist abhängig von der Dicke s "]
["    der Boden- / Deckplatte, da unterschiedliche Stirnseiten-Profile verwendet werden."]
{"$rows_empty":24}
["Zurück zu ALU-COMPACT"]
["Zurück zu ALU-COMPACT"]
[]
["Profil-Zeichnung H80"]
{"$rows_empty":37}
["Dicke s Boden- /",null,null,"max."]
["Deckenplatte",null,null,"Innenhöhe Hi"]
[]
["Boden- / Deckplatte s = 1,5 mm",null,null,"70,20 mm"]
["Boden- / Deckplatte s = 2,0 mm",null,null,"69,20 mm"]
["Boden- / Deckplatte s = 2,5 mm",null,null,"68,20 mm"]
["Boden- / Deckplatte s = 3,0 mm",null,null,"67,20 mm"]
{"$rows_empty":8}
["Zurück zu ALU-COMPACT"]

{"sheet":"H100 COMPACT","index":16,"n_rows":111,"n_cols":8,"rows_kept":111,"merged":[[17,3,17,5],[98,3,98,5],[99,3,99,5],[100,3,100,5],[101,3,101,5]]}
["Zurück zu ALU-COMPACT"]
[]
["Werknorm ALU-COMPACT  H100"]
[]
[]
["EINGABE"]
[]
[]
[null,"Eingabe Leiterplatten-Maße"]
[]
[null,"Länge LLP ",null,160," [mm]"]
[]
[null,"Breite BLP  ",null,100," [mm]"]
[]
[]
["Maße / Teileliste"]
[]
["Kurzbeschreibung",null,null," Abmessungen [mm]",null,null,"Maß A [mm]","Anzahl [Stück]"]
["Alu-Längsprofil Länge L =",null,null,{"$f":"D11+0.2","v":160.2},{"$nulls":3},2]
["Alu-Stirnseitenprofil L =",null,null,{"$f":"D13-4.3","v":95.7},{"$nulls":3},4]
["Boden- / Deckplatte s = 1,5 mm [LxB]",null,null,{"$f":"D11","v":{"v":160,"d":"160.0"}},"X",{"$f":"D13-4+17.2-0.2","v":113},4,2]
["Boden- / Deckplatte s = 2,0 mm [LxB]",null,null,{"$f":"D11","v":{"v":160,"d":"160.0"}},"X",{"$f":"D13-4+13-0.2","v":108.8},4,2]
["Boden- / Deckplatte s = 2,5 mm [LxB]",null,null,{"$f":"D11","v":{"v":160,"d":"160.0"}},"X",{"$f":"D13-4+9-0.2","v":104.8},4.5,2]
["Boden- / Deckplatte s = 3,0 mm [LxB]",null,null,{"$f":"D11","v":{"v":160,"d":"160.0"}},"X",{"$f":"D13-4+5-0.2","v":100.8},5,2]
["Stirnplatte mit Maß B4",null,null,{"$f":"D13+10.2","v":110.2},{"$nulls":3},2]
[]
["Bitte beachten:"]
["1. Die Breite der Boden- / Deckplatte ändert sich mit Ihrer Dicke (siehe Tabelle)"]
["2. Die Geometrie (siehe Zeichnung Maß A) der Stirnplatte ist abhängig von der Dicke s "]
["    der Boden- / Deckplatte, da unterschiedliche Stirnseiten-Profile verwendet werden."]
{"$rows_empty":24}
["Zurück zu ALU-COMPACT"]
["Zurück zu ALU-COMPACT"]
[]
["Profil-Zeichnung H100"]
{"$rows_empty":37}
["Dicke s Boden- /",null,null,"max."]
["Deckenplatte",null,null,"Innenhöhe Hi"]
[]
["Boden- / Deckplatte s = 1,5 mm",null,null,"90,20 mm"]
["Boden- / Deckplatte s = 2,0 mm",null,null,"89,20 mm"]
["Boden- / Deckplatte s = 2,5 mm",null,null,"88,20 mm"]
["Boden- / Deckplatte s = 3,0 mm",null,null,"87,20 mm"]
{"$rows_empty":8}
["Zurück zu ALU-COMPACT"]